bitfinex/quotes_SOLUSD_20240809
["timestamp","ask_amount","ask_price","bid_price","bid_amount"]
[1723163431285,6.0,163.07,163.06,71.1327]
[1723163431473,6.0,163.07,163.06,26.1327]
[1723163432073,6.0,163.07,163.06,71.1327]
[1723163432605,6.0,163.07,163.06,26.1327]
[1723163432775,6.0,163.07,163.0,32.58]
[1723163433104,6.0,163.07,163.06,6.1327]
[1723163433276,6.0,163.07,163.06,21.4644]
[1723163435581,6.0,163.07,163.06,15.3317]
[1723163435807,6.0,163.07,163.06,21.4644]
[1723163436677,6.0,163.07,163.06,41.4644]
[1723163437404,6.0,163.07,163.0,15.3368]
[1723163437596,6.0,163.07,163.04,6.1333]
[1723163437792,6.0,163.07,163.05,6.1329]
[1723163438007,6.0,163.07,163.03,15.3345]
[1723163438204,6.0,163.07,163.05,6.133]
[1723163438602,6.0,163.07,162.99,15.3374]
[1723163438784,38.7127,163.06,162.99,15.3374]
[1723163438982,38.7127,163.06,163.01,6.1345]
[1723163439216,6.0,163.07,163.02,6.1342]
[1723163439507,6.0,163.07,163.03,6.1337]
[1723163440106,6.0,163.07,163.02,15.3354]
[1723163440309,7.53331728,163.07,163.02,21.4694]
[1723163440504,6.0,163.07,163.03,6.1337]
[1723163440891,6.0,163.07,163.04,6.1334]
[1723163441715,6.0,163.07,163.05,6.133]
[1723163441892,6.0,163.07,163.04,15.3327]
[1723163442215,6.0,163.07,163.06,6.1327]
[1723163443409,6.0,163.07,163.05,6.133]
[1723163444211,6.0,163.07,163.06,42.2549]
[1723163444416,6.0,163.07,163.06,74.8349]
[1723163444600,6.0,163.07,163.06,119.8349]
[1723163445309,0.843317,163.09,163.08,21.4617]
[1723163445613,0.843317,163.09,163.08,41.4617]
[1723163448188,0.843317,163.09,163.08,80.5495307]
[1723163448419,6.1268,163.22,163.17,6.1284]
[1723163449395,6.1268,163.22,163.16,21.4511]
[1723163449919,6.1271,163.21,163.16,21.4511]
[1723163450133,6.1282,163.18,163.12,21.4557]
[1723163450415,25.25802637,163.23,163.12,15.3253]
[1723163450723,6.1276,163.2,163.15,6.1292]
[1723163451589,63.96462637,163.23,163.15,15.3232]
[1723163451817,1.53193613,163.22,163.15,15.3232]
[1723163452024,6.1289,163.17,163.11,21.4565]
[1723163452217,32.58,163.19,163.12,26.1302]
[1723163452424,6.1282,163.18,163.12,26.1302]
[1723163452626,38.7078,163.19,163.13,6.1298]
[1723163452799,32.58,163.19,163.12,20.0]
[1723163453000,38.7093,163.15,163.07,15.3302]
[1723163453211,32.58,163.15,163.1,15.3279]
[1723163453433,38.7088,163.17,163.11,6.1307]
[1723163453619,38.7088,163.17,163.1,15.3279]
[1723163453620,1.53245368,163.16,163.1,15.3279]
[1723163453825,32.58,163.15,163.07,15.3308]
[1723163454329,32.58,163.15,163.1,15.3279]
[1723163454499,32.58,163.15,163.11,6.1307]
[1723163454702,38.7089,163.17,163.11,6.1304]
[1723163454918,32.58,163.15,163.07,15.3307]
[1723163455121,6.13,163.14,163.07,15.3307]
[1723163455313,38.7093,163.15,163.09,6.1314]
[1723163455516,32.58,163.15,163.07,15.3307]
[1723163455925,38.7086,163.17,163.1,15.3277]
[1723163456234,6.1289,163.16,163.11,6.1308]
[1723163456541,6.1295,163.15,163.1,15.3277]
[1723163456704,38.7103,163.13,163.07,15.3308]
[1723163457200,38.7094,163.15,163.07,15.3308]
[1723163457441,38.7094,163.15,163.1,6.1311]
[1723163457606,6.1297,163.14,163.09,6.1315]
[1723163457815,31.4197,163.14,163.09,6.1315]
[1723163458208,31.4197,163.14,163.08,6.1319]
[1723163459119,25.29,163.14,163.07,21.4631]
[1723163459317,31.4204,163.12,163.07,15.3308]
[1723163459633,25.29,163.12,163.07,21.4629]
[1723163459845,25.29,163.12,163.08,6.1319]
[1723163460130,25.29,163.12,163.09,6.1315]
[1723163460451,25.29,163.12,163.07,15.3308]
[1723163460741,31.4189,163.16,163.1,6.1308]
[1723163461438,31.4189,163.16,163.11,6.1308]
[1723163461608,25.29,163.18,163.13,6.1299]
[1723163461806,25.29,163.18,163.1,25.29]
[1723163462006,25.29,163.18,163.12,21.4559]
[1723163462313,31.417,163.21,163.16,6.1289]
[1723163462526,25.29,163.21,163.16,6.1289]
[1723163463132,25.29,163.21,163.17,15.3212]
[1723163463309,9.60862637,163.23,163.17,15.3212]
[1723163463310,34.89862637,163.23,163.18,6.128]
[1723163463508,26.133317,163.25,163.21,6.127]
[1723163463738,6.969017,163.25,163.19,21.4463]
[1723163464433,32.47,163.23,163.16,15.3223]
[1723163464632,33.313317,163.25,163.16,15.3223]
[1723163465014,6.1263,163.24,163.18,6.128]
[1723163465208,0.843317,163.25,163.15,32.47]
[1723163465527,0.843317,163.25,163.18,6.1278]
[1723163465720,6.1263,163.23,163.17,6.1285]
[1723163465922,6.1266,163.23,163.17,6.1285]
[1723163466166,39.439217,163.25,163.15,31.4008]
[1723163466442,32.47,163.23,163.16,20.0]
[1723163466628,33.313317,163.25,163.17,6.1285]
[1723163466943,33.313317,163.25,163.18,6.1281]
[1723163467438,6.1259,163.24,163.18,21.4485]
[1723163467645,6.1259,163.24,163.18,15.3204]
[1723163467944,6.1259,163.24,163.19,6.1278]
[1723163468337,0.843317,163.25,163.18,15.3204]
[1723163468526,0.843317,163.25,163.19,20.0]
[1723163469048,0.843317,163.25,163.22,6.1266]
[1723163469224,0.843317,163.25,163.21,15.69248206]
[1723163469424,0.843317,163.25,163.22,20.0]
[1723163469641,0.843317,163.25,163.23,6.1262]
[1723163470232,0.843317,163.25,163.24,21.4407]
[1723163470851,0.843317,163.25,163.24,41.4407]
[1723163471245,0.843317,163.25,163.24,86.4407]
[1723163471629,0.843317,163.25,163.24,41.4407]
[1723163472821,0.843317,163.25,163.24,86.4407]
[1723163473082,0.843317,163.25,163.24,41.4407]
[1723163475046,0.843317,163.25,163.24,15.3148]
[1723163475254,0.843317,163.25,163.24,21.4407]
[1723163477448,0.843317,163.25,163.24,41.4407]
[1723163477947,0.843317,163.25,163.2,15.318]
[1723163478130,0.843317,163.25,163.23,15.3153]
[1723163478727,0.843317,163.25,163.24,6.1259]
[1723163480564,0.843317,163.25,163.21,6.1267]
[1723163480845,33.313317,163.25,163.21,6.127]
[1723163481232,33.313317,163.25,163.22,6.1266]
[1723163481637,33.313317,163.25,163.2,6.1271]
[1723163482135,33.313317,163.25,163.21,6.127]
[1723163482549,33.313317,163.25,163.19,15.3191]
[1723163482856,33.313317,163.25,163.22,6.1266]
[1723163483150,33.313317,163.25,163.19,15.3191]
[1723163483358,33.313317,163.25,163.21,6.1268]
[1723163483560,39.438817,163.25,163.19,15.3191]
[1723163483737,25.26,163.22,163.19,21.4468]
[1723163484157,25.26,163.22,163.2,6.1274]
[1723163484858,25.26,163.22,163.21,6.127]
[1723163485159,25.26,163.24,163.21,6.127]
[1723163485536,25.26,163.22,163.19,21.4466]
[1723163485734,0.843317,163.25,163.19,21.4466]
[1723163486036,0.843317,163.25,163.14,6.1295]
[1723163486037,25.26,163.2,163.14,6.1295]
[1723163486257,25.26,163.19,163.11,15.0937]
[1723163486440,25.26,163.19,163.1,62.3027]
[1723163486441,1.5320926,163.24,163.18,25.26]
[1723163486713,31.54382607,163.41,163.05,10.76287254]
[1723163486714,0.843317,163.41,163.35,6.1218]
[1723163486869,0.843317,163.41,163.33,1.22409232]
[1723163487185,0.843317,163.41,163.35,25.26]
[1723163487358,0.843317,163.41,163.36,20.0]
[1723163487540,0.843317,163.41,163.24,26.5213]
[1723163487541,0.843317,163.41,163.39,25.26]
[1723163487739,0.843317,163.41,163.39,58.5003]
[1723163488864,0.843317,163.41,163.39,26.1203]
[1723163489242,0.843317,163.41,163.37,15.3023]
[1723163489445,6.962917,163.41,163.35,6.1217]
[1723163489661,0.843317,163.41,163.33,15.3061]
[1723163489873,0.843317,163.41,163.36,47.6831]
[1723163490078,0.843317,163.41,163.38,32.38]
[1723163490272,0.843317,163.41,163.39,6.1203]
[1723163491481,0.843317,163.41,163.36,47.6831]
[1723163491769,0.843317,163.41,163.39,6.1203]
[1723163493774,0.843317,163.41,163.37,6.121]
[1723163494074,0.843317,163.41,163.38,6.1206]
[1723163494245,0.843317,163.41,163.39,6.1201]
[1723163494444,0.843317,163.41,163.4,6.1199]
[1723163494643,0.843317,163.41,163.35,32.38]
[1723163494876,0.843317,163.41,163.35,15.3042]
[1723163495050,0.843317,163.41,163.36,1.22410055]
[1723163495448,0.843317,163.41,163.38,15.3012]
[1723163495644,0.843317,163.41,163.4,6.1199]
[1723163496148,0.843317,163.41,163.4,27.34358054]
[1723163496362,0.843317,163.41,163.38,21.4217]
[1723163496706,0.843317,163.41,163.4,6.1199]
[1723163497680,0.843317,163.41,163.4,7.34360049]
[1723163498251,0.843317,163.41,163.4,27.34360049]
[1723163499075,6.0,163.48,163.47,6.1173]
[1723163499577,6.0,163.48,163.45,21.412]
[1723163499873,6.0,163.48,163.45,15.2943]
[1723163500351,6.0,163.48,163.46,32.38]
[1723163500552,6.0,163.48,163.47,6.1173]
[1723163501214,6.0,163.48,163.47,26.1173]
[1723163501361,6.0,163.48,163.47,71.1173]
[1723163501683,0.843317,163.58,163.57,6.1135]
[1723163502676,0.843317,163.58,163.57,38.4935]
[1723163502877,0.343317,163.58,163.57,38.4935]
[1723163503805,0.343317,163.58,163.57,103.4935]
[1723163505185,0.343317,163.58,163.57,58.4935]
[1723163505594,0.343317,163.58,163.57,104.71587975]
[1723163505888,21.6462,163.7,163.63,15.2777]
[1723163506264,27.755,163.7,163.63,15.2777]
[1723163506461,27.755,163.7,163.64,6.1106]
[1723163506873,21.6462,163.7,163.65,7.33254641]
[1723163507197,21.6462,163.7,163.66,15.2754]
[1723163507395,15.4692,163.7,163.66,15.2754]
[1723163507688,15.4692,163.7,163.68,6.1094]
[1723163507900,6.1122,163.61,163.5,8.87300009]
[1723163508069,6.1121,163.61,163.53,32.38]
[1723163508492,1.52836007,163.6,163.53,32.38]
[1723163508707,6.1121,163.61,163.53,32.38]
[1723163508896,6.1113,163.64,163.58,6.113]
[1723163509778,6.1106,163.65,163.59,6.1127]
[1723163510796,32.38,163.64,163.56,15.284]
[1723163511596,32.38,163.64,163.59,6.1127]
[1723163511897,38.491,163.64,163.58,6.1131]
[1723163512297,6.1114,163.63,163.56,15.284]
[1723163512588,6.1117,163.62,163.56,15.284]
[1723163513086,6.1121,163.61,163.56,21.3979]
[1723163513274,1.52831407,163.6,163.56,21.3979]
[1723163513799,7.6401138,163.62,163.56,21.3979]
[1723163514378,7.6401138,163.62,163.57,6.1135]
[1723163514690,6.1117,163.62,163.57,6.1135]
[1723163515501,38.4913,163.64,163.57,6.1135]
[1723163515709,6.1114,163.63,163.57,6.1135]
[1723163515999,7.63987621,163.63,163.56,15.284]
[1723163516228,6.1116,163.63,163.56,15.284]
[1723163516691,32.38,163.64,163.58,6.113]
[1723163516900,32.38,163.66,163.58,6.113]
[1723163517108,6.1113,163.64,163.58,6.113]
[1723163517283,6.1113,163.64,163.56,15.284]
[1723163517493,6.1114,163.63,163.56,15.284]
[1723163518071,1.52818501,163.62,163.56,15.284]
[1723163518297,6.1117,163.63,163.56,21.3979]
[1723163518495,32.38,163.64,163.56,21.3979]
[1723163518695,6.1117,163.62,163.57,6.1135]
[1723163519205,6.1113,163.63,163.58,6.1131]
[1723163520108,6.111,163.64,163.58,6.1131]
[1723163520574,7.63955892,163.63,163.58,6.1131]
[1723163520776,6.1114,163.63,163.56,15.284]
[1723163520977,6.1114,163.63,163.58,6.1131]
[1723163521214,6.111,163.64,163.58,6.1131]
[1723163521574,6.111,163.64,163.59,6.1128]
[1723163522198,6.111,163.64,163.57,6.1132]
[1723163522504,6.111,163.64,163.58,6.1131]
[1723163523681,6.1113,163.63,163.58,6.1131]
[1723163524305,6.111,163.64,163.58,6.1131]
[1723163525899,6.111,163.64,163.58,6.1129]
[1723163526413,6.6128,163.69,163.59,40.412]
[1723163526579,6.1107,163.65,163.59,46.5248]
[1723163526774,31.2402,163.66,163.6,6.1123]
[1723163527007,6.1102,163.66,163.6,6.1123]
[1723163528412,6.6128,163.69,163.59,15.282]
[1723163528413,6.111,163.64,163.59,15.282]
[1723163528798,6.1095,163.68,163.62,40.4091]
[1723163528996,16.111417,163.74,163.65,6.1102]
[1723163528997,6.1088,163.7,163.65,6.1102]
[1723163529296,25.13,163.73,163.64,25.13]
[1723163529297,6.1094,163.69,163.64,25.13]
[1723163529495,6.1087,163.7,163.64,31.2408]
[1723163529797,6.1087,163.7,163.65,6.1105]
[1723163530204,25.13,163.72,163.64,40.4073]
[1723163530405,0.843317,163.74,163.73,6.1076]
[1723163530657,0.843317,163.74,163.7,40.4017]
[1723163530800,0.843317,163.74,163.7,21.3802]
[1723163531006,27.50042095,163.74,163.66,15.2754]
[1723163531209,27.50042095,163.74,163.62,15.2783]
[1723163531210,25.13,163.7,163.62,15.2783]
[1723163531412,25.13,163.7,163.64,6.1108]
[1723163531595,25.13,163.72,163.67,6.1098]
[1723163532004,25.13,163.72,163.68,6.1093]
[1723163532211,0.843317,163.74,163.68,15.2735]
[1723163532416,25.973317,163.74,163.69,6.109]
[1723163532791,6.950517,163.74,163.68,15.2735]
[1723163532995,32.080517,163.74,163.68,21.3828]
[1723163533329,25.13,163.72,163.68,15.2735]
[1723163533710,31.238,163.72,163.67,6.1098]
[1723163533922,31.2387,163.7,163.64,6.1109]
[1723163534134,25.13,163.7,163.65,6.1105]
[1723163534360,31.238,163.72,163.66,6.1101]
[1723163534512,25.13,163.72,163.67,6.1098]
[1723163535322,0.843317,163.74,163.69,6.1091]
[1723163535499,25.973317,163.74,163.69,15.2723]
[1723163535699,25.973317,163.74,163.57,6.0447]
[1723163535700,22.6258,163.69,163.57,6.0447]
[1723163535904,22.6258,163.69,163.6,6.1124]
[1723163535905,31.2407,163.65,163.6,6.1124]
[1723163536111,25.13,163.65,163.57,21.328]
[1723163536311,25.13,163.65,163.6,6.1124]
[1723163536628,1.52796016,163.64,163.57,6.0447]
[1723163536826,25.13,163.63,163.56,15.2841]
[1723163537000,25.13,163.63,163.59,15.2819]
[1723163537342,31.2406,163.65,163.59,21.3947]
[1723163537567,25.13,163.65,163.59,15.2819]
[1723163537838,9.58160064,163.66,163.59,15.2819]
[1723163538030,6.1098,163.68,163.62,6.1116]
[1723163538206,6.1102,163.66,163.6,6.1124]
[1723163538400,6.1097,163.68,163.59,15.2819]
[1723163538606,64.52702456,163.69,163.64,6.1109]
[1723163538607,9.58122456,163.69,163.64,6.1109]
[1723163538933,15.69032456,163.69,163.63,6.1111]
[1723163539224,6.1115,163.63,163.57,21.3963]
[1723163539431,32.32,163.65,163.59,6.1127]
[1723163539797,6.111,163.64,163.58,6.1131]
[1723163539994,32.32,163.67,163.57,15.283]
[1723163540210,32.32,163.67,163.56,32.32]
[1723163540407,6.1097,163.68,163.63,15.278]
[1723163540618,41.90122456,163.69,163.63,15.278]
[1723163541139,41.90122456,163.69,163.67,6.1094]
[1723163541140,9.58122456,163.69,163.67,6.1094]
[1723163541293,27.1876,163.73,163.66,15.2749]
[1723163541496,27.1876,163.73,163.62,21.348]
[1723163541497,11.10655456,163.72,163.62,21.348]
[1723163541697,32.32,163.69,163.62,15.2787]
[1723163541892,32.32,163.71,163.58,32.32]
[1723163542110,32.32,163.71,163.65,6.1105]
[1723163542318,32.32,163.71,163.6,32.32]
[1723163542319,9.57922671,163.72,163.62,32.32]
[1723163542501,1.52745045,163.71,163.62,48.8258]
[1723163542721,6.0,163.73,163.63,35.2776]
[1723163542920,6.1083,163.71,163.63,35.2776]
[1723163543102,38.32,163.73,163.63,15.2776]
[1723163543296,38.32,163.73,163.66,6.1101]
[1723163543498,6.0,163.73,163.66,15.2748]
[1723163543706,6.0,163.73,163.62,31.7843]
[1723163543931,6.1083,163.71,163.65,6.1105]
[1723163544126,6.0,163.73,163.65,15.2762]
[1723163544708,6.0,163.73,163.69,6.1089]
[1723163545113,6.0,163.73,163.68,15.2735]
[1723163545513,6.0,163.73,163.7,6.1083]
[1723163545726,6.0,163.73,163.68,16.49510753]
[1723163545922,6.0,163.73,163.72,6.1079]
[1723163547639,6.0,163.73,163.72,51.1079]
[1723163547802,6.0,163.73,163.72,6.1079]
[1723163548233,6.0,163.73,163.67,15.2738]
[1723163548610,7.63540972,163.72,163.67,15.2738]
[1723163548931,6.0,163.73,163.67,15.2738]
[1723163549337,6.0,163.73,163.7,6.1087]
[1723163549505,6.0,163.73,163.71,6.1083]
[1723163549904,6.0,163.73,163.67,15.2738]
[1723163550213,6.0,163.73,163.72,6.1079]
[1723163550436,6.0,163.73,163.7,15.2716]
[1723163551022,6.0,163.73,163.68,6.1093]
[1723163551329,6.0,163.73,163.66,21.5464]
[1723163551515,6.0,163.73,163.7,6.1086]
[1723163551712,6.0,163.73,163.69,15.2726]
[1723163551713,6.0,163.73,163.71,6.1079]
[1723163551935,6.0,163.73,163.72,6.1079]
[1723163552707,6.0,163.73,163.72,38.4279]
[1723163553704,6.0,163.73,163.72,83.4279]
[1723163553904,6.0,163.73,163.72,99.2863]
[1723163554124,6.0,163.73,163.72,119.2863]
[1723163554543,6.0,163.73,163.72,74.2863]
[1723163554719,6.0,163.73,163.72,54.2863]
[1723163554922,6.0,163.73,163.69,15.2726]
[1723163555109,6.0,163.73,163.7,32.32]
[1723163555306,6.0,163.73,163.72,6.1079]
[1723163556027,6.0,163.73,163.7,32.32]
[1723163556218,6.0,163.73,163.72,6.1079]
[1723163556617,6.0,163.73,163.7,6.1087]
[1723163556816,6.0,163.73,163.69,15.2726]
[1723163557236,6.0,163.73,163.7,6.1083]
[1723163557533,6.0,163.73,163.66,6.2714]
[1723163557756,12.1079,163.73,163.66,6.1098]
[1723163557923,12.1079,163.73,163.67,6.1097]
[1723163558249,6.0,163.73,163.65,15.2757]
[1723163558416,6.0,163.73,163.68,6.1094]
[1723163558743,6.0,163.73,163.65,15.2757]
[1723163559040,38.32,163.73,163.62,6.5001]
[1723163559236,6.0,163.73,163.64,15.2771]
[1723163559413,12.1076,163.73,163.67,6.1095]
[1723163559608,6.1081,163.72,163.66,6.1102]
[1723163559825,6.1084,163.71,163.64,21.3877]
[1723163560033,6.1084,163.71,163.65,6.1104]
[1723163560236,6.1079,163.72,163.66,6.1098]
[1723163560613,6.1084,163.71,163.65,6.1105]
[1723163560814,38.32,163.73,163.64,15.2771]
[1723163561030,32.32,163.71,163.6,15.2804]
[1723163561268,32.32,163.71,163.63,6.1112]
[1723163561269,6.1091,163.69,163.63,6.1112]
[1723163561742,19.5,163.72,163.64,6.1106]
[1723163561943,19.5,163.72,163.63,15.2783]
[1723163561944,6.1087,163.7,163.65,6.1104]
[1723163562238,6.1087,163.7,163.58,21.5871]
[1723163562239,6.1106,163.65,163.59,15.2812]
[1723163562418,32.32,163.68,163.59,15.2812]
[1723163562739,6.1102,163.66,163.59,15.2812]
[1723163563514,6.1106,163.65,163.59,15.2812]
[1723163563724,6.1106,163.65,163.55,32.32]
[1723163563725,6.1109,163.64,163.55,47.6052]
[1723163563926,12.4501,163.66,163.6,6.1124]
[1723163564441,12.45,163.66,163.6,6.1124]
[1723163564649,6.1107,163.65,163.59,6.1124]
[1723163564821,12.4498,163.66,163.6,6.1124]
[1723163565039,12.4498,163.66,163.54,15.2863]
[1723163565040,32.32,163.62,163.54,15.2863]
[1723163565221,32.32,163.62,163.55,6.1142]
[1723163565222,6.1121,163.61,163.55,6.1142]
[1723163565445,6.1121,163.61,163.56,6.1139]
[1723163565633,6.1127,163.6,163.54,21.4007]
[1723163565833,32.32,163.62,163.54,15.2863]
[1723163566040,32.32,163.62,163.5,32.32]
[1723163566041,6.1143,163.56,163.5,15.2898]
[1723163566350,32.32,163.58,163.46,21.3442]
[1723163566557,47.4882,163.58,163.46,21.3442]
[1723163566775,6.6164,163.54,163.49,6.1165]
[1723163567067,6.1171,163.48,163.42,15.2972]
[1723163567352,32.32,163.51,163.42,15.2972]
[1723163567353,33.84934992,163.51,163.42,15.2972]
[1723163567535,6.1185,163.44,163.38,15.301]
[1723163567742,6.118,163.46,163.39,6.1203]
[1723163567949,33.8497631,163.47,163.39,6.1203]
[1723163568650,1.52977486,163.49,163.39,6.1203]
[1723163568952,6.1181,163.45,163.39,6.1203]
[1723163569458,6.1181,163.45,163.4,6.1199]
[1723163569833,32.32,163.47,163.4,6.1199]
[1723163570127,32.32,163.45,163.34,15.3048]
[1723163570330,32.32,163.45,163.32,32.32]
[1723163570331,6.1207,163.38,163.32,6.1225]
[1723163570534,6.1206,163.39,163.3,15.3085]
[1723163570726,32.32,163.41,163.3,15.3085]
[1723163570950,21.886,163.43,163.3,15.3085]
[1723163570951,32.32,163.39,163.3,21.4318]
[1723163571185,6.1211,163.37,163.31,6.1232]
[1723163571731,32.32,163.39,163.3,15.3085]
[1723163571963,6.1192,163.42,163.36,6.1214]
[1723163572157,32.32,163.43,163.35,6.1218]
[1723163572461,32.32,163.43,163.28,38.5529]
[1723163572462,32.32,163.41,163.31,6.1233]
[1723163572629,32.32,163.39,163.31,6.1233]
[1723163572941,6.1211,163.37,163.31,6.1232]
[1723163573329,32.32,163.39,163.32,6.1228]
[1723163573330,38.4406,163.39,163.32,6.1228]
[1723163573558,32.32,163.39,163.32,15.307]
[1723163573730,6.1207,163.38,163.32,21.4297]
[1723163574154,6.1219,163.35,163.29,6.1237]
[1723163574456,38.4418,163.35,163.3,6.1236]
[1723163574838,1.53088065,163.34,163.28,15.3105]
[1723163575031,32.32,163.35,163.28,15.3105]
[1723163575335,32.32,163.37,163.28,15.3105]
[1723163575543,32.32,163.35,163.28,15.3105]
[1723163575746,6.1222,163.34,163.28,21.4345]
[1723163575927,32.32,163.37,163.28,15.3105]
[1723163576130,6.1214,163.36,163.3,6.1233]
[1723163576356,32.32,163.37,163.28,15.3105]
[1723163576536,38.4403,163.39,163.33,6.1225]
[1723163577154,1.53050017,163.38,163.31,21.4309]
[1723163577353,6.121,163.37,163.31,21.4309]
[1723163577733,6.1215,163.36,163.31,15.308]
[1723163577931,1.53065022,163.35,163.27,15.3112]
[1723163578248,33.85065022,163.35,163.27,15.3112]
[1723163578430,32.32,163.35,163.27,15.3112]
[1723163578630,38.4421,163.35,163.27,15.3112]
[1723163579243,6.1222,163.34,163.27,15.3112]
[1723163579547,33.85087162,163.35,163.27,21.4356]
[1723163579548,7.65352916,163.33,163.27,21.4356]
[1723163580045,6.1238,163.3,163.25,6.1255]
[1723163580243,1.53110756,163.29,163.23,15.3149]
[1723163580455,32.32,163.31,163.21,15.5129]
[1723163580641,6.124,163.29,163.24,6.1258]
[1723163580833,7.65577701,163.28,163.22,15.3167]
[1723163581032,6.125,163.27,163.22,15.3167]
[1723163581335,6.1243,163.29,163.22,15.3167]
[1723163581857,6.1241,163.29,163.24,6.1258]
[1723163582039,6.1241,163.29,163.22,15.3167]
[1723163582040,6.1253,163.26,163.2,6.1271]
[1723163582247,32.32,163.27,163.21,6.1269]
[1723163582450,32.32,163.29,163.21,15.3175]
[1723163582642,32.32,163.29,163.24,6.1259]
[1723163582831,6.1229,163.32,163.24,15.3148]
[1723163583772,6.1229,163.32,163.26,6.1251]
[1723163583961,38.9172,163.33,163.28,6.1243]
[1723163584262,6.1222,163.34,163.27,15.3117]
[1723163584458,32.32,163.35,163.27,15.3117]
[1723163584459,6.1225,163.33,163.27,15.3117]
[1723163584671,6.1237,163.3,163.24,6.1259]
[1723163585164,32.32,163.31,163.23,15.3152]
[1723163585469,32.32,163.33,163.25,6.1255]
[1723163585642,6.1238,163.3,163.24,6.1259]
[1723163585835,6.1248,163.27,163.21,6.127]
[1723163586076,6.1243,163.29,163.23,6.1262]
[1723163586290,32.32,163.31,163.22,21.4433]
[1723163586567,32.32,163.29,163.21,6.127]
[1723163586736,17.38794733,163.36,163.28,6.1243]
[1723163586941,32.32,163.35,163.28,6.1243]
[1723163587141,6.1226,163.33,163.27,21.4367]
[1723163587354,32.32,163.35,163.27,15.312]
[1723163587566,32.32,163.33,163.23,32.32]
[1723163587877,32.32,163.33,163.25,6.1255]
[1723163588749,32.32,163.31,163.23,21.4408]
[1723163588949,32.32,163.29,163.23,15.3149]
[1723163589553,48.04648502,163.29,163.23,15.3149]
[1723163589776,9.60248502,163.29,163.23,15.3149]
[1723163589970,9.60248502,163.29,163.25,6.1255]
[1723163590483,9.60248502,163.29,163.23,15.3149]
[1723163591346,6.1247,163.28,163.23,15.3149]
[1723163591551,9.60248502,163.29,163.23,15.3149]
[1723163591859,32.32,163.33,163.23,15.3149]
[1723163592057,9.60161546,163.31,163.23,15.3149]
[1723163592274,6.124,163.29,163.24,6.1256]
[1723163592464,6.1244,163.28,163.23,21.4411]
[1723163592661,6.1241,163.29,163.24,6.1258]
[1723163592853,15.72521546,163.31,163.25,6.1253]
[1723163593062,9.60161546,163.31,163.23,15.3149]
[1723163593378,6.1248,163.27,163.22,6.1265]
[1723163593573,6.1244,163.29,163.22,15.3164]
[1723163593758,9.60161546,163.31,163.23,32.32]
[1723163593946,9.60161546,163.31,163.21,32.32]
[1723163594150,6.1243,163.29,163.23,6.1259]
[1723163594367,6.1243,163.29,163.24,6.1257]
[1723163594574,9.60161546,163.31,163.24,6.1257]
[1723163594575,15.72521546,163.31,163.24,6.1257]
[1723163594763,9.60161546,163.31,163.24,21.4407]
[1723163595152,9.60161546,163.31,163.24,15.3148]
[1723163595779,32.32,163.35,163.27,15.3119]
[1723163596267,9.60097886,163.33,163.27,15.3119]